fUSD/lending_fUSD_20260107
["ID","MTS","AMOUNT","RATE_DAILY","PERIOD"]
[400647072,1767763849101,-356.4352397,0.00035616,7]
[400647073,1767763849110,-1000.0,0.0003567,2]
[400647074,1767763849119,-983.46328676,0.0003567,2]
[400647075,1767763849130,-501.0,0.00035952,9]
[400647076,1767763849144,-2000.0,0.00036,30]
[400647077,1767763849154,-2000.0,0.00036,30]
[400647078,1767763849163,-2318.0,0.00036,30]
[400647079,1767763849175,-1505.02,0.00036,2]
[400647080,1767763849186,-600.05,0.00036049,30]
[400647081,1767763849195,-153.0,0.00036247,30]
[400647082,1767763849204,-150.0,0.00036543,2]
[400647083,1767763849216,-150.0,0.00036543,2]
[400647084,1767763849225,-150.0,0.00036543,2]
[400647085,1767763849236,-150.0,0.00036543,2]
[400647086,1767763849246,-150.0,0.00036543,2]
[400647087,1767763849540,-150.0,0.00036543,2]
[400647088,1767763849552,-150.0,0.00036543,2]
[400647089,1767763849561,-150.0,0.00036543,2]
[400647090,1767763849571,-150.0,0.00036543,2]
[400647091,1767763849580,-150.0,0.00036543,2]
[400647092,1767763849590,-150.0,0.00036543,2]
[400647093,1767763849599,-505.0,0.00036555,2]
[400647094,1767763849609,-1266.0,0.00036555,2]
[400647095,1767763849619,-1201.0,0.00036555,2]
[400647096,1767763849629,-914.0,0.00036555,2]
[400647097,1767763849638,-1330.0,0.00036555,2]
[400647098,1767763849648,-2436.0,0.00036555,2]
[400647099,1767763849657,-1405.0,0.00036555,2]
[400647100,1767763849666,-717.22,0.00036578,2]
[400647101,1767763849676,-384.63394623,0.0003659,2]
[400647102,1767763849685,-238.68837173,0.00036628,31]
[400647103,1767763849695,-151.0,0.00036628,31]
[400647104,1767763849704,-151.0,0.00036628,31]
[400647105,1767763849713,-151.0,0.00036628,31]
[400647106,1767763849723,-151.0,0.00036628,31]
[400647107,1767763849732,-300.0,0.00036645,2]
[400647108,1767763849741,-173.46,0.000367,14]
[400647109,1767763849750,-300.0,0.00036731,2]
[400647110,1767763849759,-300.0,0.00036751,2]
[400647111,1767763849768,-300.0,0.00036782,2]
[400647112,1767763849777,-300.0,0.000368,2]
[400647113,1767763849786,-300.0,0.00036848,2]
[400647114,1767763849795,-300.0,0.00036874,2]
[400647115,1767763849804,-212.46,0.00036889,2]
[400647116,1767763849813,-300.0,0.00036901,2]
[400647117,1767763849822,-152.0,0.0003694,4]
[400647118,1767763849831,-300.0,0.00036947,2]
[400647119,1767763849840,-3000.0,0.00037,30]
[400647120,1767763849849,-3000.0,0.00037,30]
[400647121,1767763849858,-3075.0,0.00037,30]
[400647122,1767763849867,-2501.0,0.00037,30]
[400647123,1767763849878,-2000.0,0.00037,30]
[400647124,1767763849887,-300.0,0.00037009,2]
[400647125,1767763849897,-300.0,0.00037124,2]
[400647126,1767763849906,-300.0,0.00037142,2]
[400647127,1767763849915,-300.0,0.0003715,2]
[400647128,1767763849926,-300.0,0.0003717,2]
[400647129,1767763849936,-168.5,0.000372,14]
[400647130,1767763849945,-221.13408838,0.000372,120]
[400647131,1767763849954,-300.0,0.00037213,2]
[400647132,1767763849964,-300.0,0.00037266,2]
[400647133,1767763849974,-300.0,0.00037293,2]
[400647134,1767763849983,-300.0,0.00037364,2]
[400647135,1767763849993,-150.0,0.00037411,2]
[400647136,1767763850002,-150.0,0.00037411,2]
[400647137,1767763850011,-300.0,0.00037411,2]
[400647138,1767763850020,-150.0,0.00037411,2]
[400647139,1767763850030,-150.0,0.00037411,2]
[400647140,1767763850040,-150.0,0.00037411,2]
[400647141,1767763850050,-150.0,0.00037411,2]
[400647142,1767763850059,-150.0,0.00037411,2]
[400647143,1767763850069,-150.0,0.00037411,2]
[400647144,1767763850078,-150.0,0.00037411,2]
[400647145,1767763850088,-150.0,0.00037411,2]
[400647146,1767763850098,-300.0,0.00037456,2]
[400647147,1767763850109,-501.0,0.00037471,10]
[400647148,1767763850118,-300.0,0.00037523,2]
[400647149,1767763850127,-873.23,0.000376,30]
[400647150,1767763850137,-300.0,0.00037633,2]
[400647151,1767763850151,-300.0,0.00037666,2]
[400647152,1767763850161,-300.0,0.00037752,2]
[400647153,1767763850172,-300.0,0.00037803,2]
[400647154,1767763850181,-661.33,0.00037829,2]
[400647155,1767763850190,-661.33,0.00037829,2]
[400647156,1767763850200,-661.33,0.00037829,2]
[400647157,1767763850212,-661.33,0.00037829,2]
[400647158,1767763850222,-661.33,0.00037829,2]
[400647159,1767763850231,-482.63,0.00037829,2]
[400647160,1767763850242,-482.63,0.00037829,2]
[400647161,1767763850251,-661.33,0.00037829,2]
[400647162,1767763850262,-482.63,0.00037829,2]
[400647163,1767763850271,-482.63,0.00037829,2]
[400647164,1767763850280,-1321.85,0.00037829,2]
[400647165,1767763850289,-482.63,0.00037829,2]
[400647166,1767763850301,-482.63,0.00037829,2]
[400647167,1767763850310,-482.63,0.00037829,2]
[400647168,1767763850319,-964.5,0.00037829,2]
[400647169,1767763850329,-661.33,0.00037829,2]
[400647170,1767763850339,-300.0,0.00037853,2]
[400647171,1767763850349,-300.0,0.00037891,2]
[400647172,1767763850359,-2085.81,0.000379,2]
[400647173,1767763850368,-300.0,0.00037953,2]
[400647174,1767763850378,-398.86540225,0.00037959,2]
[400647175,1767763850387,-300.0,0.0003799,2]
[400647176,1767763850397,-500.0,0.00038,120]
[400647177,1767763850408,-500.0,0.00038,120]
[400647178,1767763850417,-3000.0,0.00038,30]
[400647179,1767763850427,-3000.0,0.00038,30]
[400647180,1767763850437,-2000.0,0.00038,30]
[400647181,1767763850447,-300.0,0.00038039,2]
[400647182,1767763850457,-300.0,0.00038055,2]
[400647183,1767763850466,-1000.0,0.0003807,2]
[400647184,1767763850475,-500.0,0.0003807,2]
[400647185,1767763850485,-300.0,0.000381,2]
[400647186,1767763850494,-300.0,0.00038116,2]
[400647187,1767763850504,-300.0,0.00038117,2]
[400647188,1767763850513,-1688.95959214,0.00038146,5]
[400647189,1767763850523,-222.86674835,0.00038146,5]
[400647190,1767763850533,-427.0,0.00038152,30]
[400647191,1767763850542,-300.0,0.00038158,2]
[400647192,1767763850555,-300.0,0.00038185,2]
[400647193,1767763850564,-300.0,0.00038186,2]
[400647194,1767763850573,-300.0,0.00038192,2]
[400647195,1767763850583,-171.25,0.00038233,2]
[400647196,1767763850593,-171.25,0.00038233,2]
[400647197,1767763850602,-171.25,0.00038233,2]
[400647198,1767763850612,-171.25,0.00038233,2]
[400647199,1767763850621,-171.25,0.00038233,2]
[400647200,1767763850631,-171.25,0.00038233,2]
[400647201,1767763850641,-357.98,0.00038233,2]
[400647202,1767763850650,-171.25,0.00038233,2]
[400647203,1767763850660,-151.0,0.00038286,31]
[400647204,1767763850669,-151.0,0.00038286,31]
[400647205,1767763850678,-161.064897,0.00038286,31]
[400647206,1767763850687,-224.736799,0.00038286,31]
[400647207,1767763850697,-224.736799,0.00038286,31]
[400647208,1767763850706,-224.736799,0.00038286,31]
[400647209,1767763850715,-224.736799,0.00038286,31]
[400647210,1767763850724,-155.778535,0.00038286,31]
[400647211,1767763850734,-155.778535,0.00038286,31]
[400647212,1767763850743,-151.0,0.00038286,31]
[400647213,1767763850752,-155.778535,0.00038286,31]
[400647214,1767763850761,-155.778535,0.00038286,31]
[400647215,1767763850771,-151.0,0.00038286,31]
[400647216,1767763850781,-300.0,0.00038361,2]
[400647217,1767763850791,-300.0,0.000384,2]
[400647218,1767763850805,-4225.0,0.00038463,7]
[400647219,1767763850814,-300.0,0.00038512,2]
[400647220,1767763850824,-300.0,0.00038544,2]
[400647221,1767763850834,-200.0,0.00038555,20]
[400647222,1767763850843,-300.0,0.00038565,2]
[400647223,1767763850853,-300.0,0.00038602,2]
[400647224,1767763850864,-300.0,0.00038616,2]
[400647225,1767763850874,-300.0,0.00038641,2]
[400647226,1767763850883,-300.0,0.00038674,2]
[400647227,1767763850893,-300.0,0.00038679,2]
[400647228,1767763850903,-661.33,0.00038685,2]
[400647229,1767763850912,-661.33,0.00038685,2]
[400647230,1767763850922,-482.63,0.00038685,2]
[400647231,1767763850931,-482.63,0.00038685,2]
[400647232,1767763850941,-482.63,0.00038685,2]
[400647233,1767763850951,-482.63,0.00038685,2]
[400647234,1767763850960,-300.0,0.00038738,2]
[400647235,1767763850969,-300.0,0.00038744,2]
[400647236,1767763850978,-661.33,0.00038788,2]
[400647237,1767763850987,-661.33,0.00038788,2]
[400647238,1767763850997,-661.33,0.00038788,2]
[400647239,1767763851006,-661.33,0.00038788,2]
[400647240,1767763851016,-480.83,0.00038788,2]
[400647241,1767763851025,-482.63,0.00038788,2]
[400647242,1767763851035,-482.63,0.00038788,2]
[400647243,1767763851044,-482.63,0.00038788,2]
[400647244,1767763851053,-482.63,0.00038788,2]
[400647245,1767763851063,-482.63,0.00038788,2]
[400647246,1767763851072,-303.25,0.00038788,2]
[400647247,1767763851081,-500.0,0.000388,30]
[400647248,1767763851090,-152.0,0.00038843,5]
[400647249,1767763851099,-131.63585686,0.00038866,2]
[400647250,1767763851108,-300.0,0.00038875,2]
[400647251,1767763851117,-300.0,0.00038881,2]
[400647252,1767763851126,-296.8667,0.00038888,30]
[400647253,1767763851137,-10000.0,0.00038955,2]
[400647254,1767763851152,-1000.0,0.0003897,2]
[400647255,1767763851162,-500.0,0.0003897,2]
[400647256,1767763851171,-300.0,0.00038981,2]
[400647257,1767763851180,-300.0,0.00038986,2]
[400647258,1767763851190,-501.0,0.0003899,12]
[400647259,1767763851199,-151.0,0.00038997,14]
[400647260,1767763851208,-250.0,0.00039,45]
[400647261,1767763851220,-250.0,0.00039,45]
[400647262,1767763851229,-250.0,0.00039,45]
[400647263,1767763851238,-7330.04478731,0.00039,28]
[400647264,1767763851247,-45834.78396487,0.00039,120]
[400647265,1767763851877,-827.55251014,0.00039,120]
[400647266,1767763851892,-2171.48568448,0.00039,120]
[400647340,1767764858030,10000.0,0.000162,2]
[400647342,1767764879338,10000.0,0.000162,2]
[400647352,1767764961454,0.01,9.993e-05,2]
[400647353,1767764961482,158.54,9.993e-05,2]
[400647354,1767764961642,158.55,0.00010707,2]
[400647355,1767764961849,158.55,0.00011421,2]
[400647356,1767764962043,158.55,0.00012135,2]
[400647357,1767764962462,158.55,0.00012849,2]
[400647358,1767764962660,158.55,0.00013562,2]
[400647359,1767764962868,158.55,0.00014276,2]
[400647360,1767764963071,158.55,0.0001499,2]
[400647361,1767764963275,158.55,0.00015704,2]
[400647368,1767765031920,-158.55,0.00016418,2]
[400647369,1767765031930,-250.0,0.00017,2]
[400647370,1767765031940,-158.55,0.00017131,2]
[400647371,1767765031950,-165.27287945,0.00017542,2]
[400647372,1767765031960,-902.998,0.00017542,2]
[400647373,1767765031969,-9479.96716165,0.000177,2]
[400647374,1767765031981,-172.27921103,0.000177,2]
[400647375,1767765031990,-300.0,0.00017798,2]
[400647376,1767765031999,-1200.0,0.00017798,2]
[400647377,1767765032009,-300.0,0.00017798,2]
[400647378,1767765032018,-449640.076018,0.00017799,2]
[400647379,1767765032029,-19787.22771638,0.00017799,2]
[400647381,1767765032040,-109429.75805033,0.00017799,2]
[400647383,1767765032051,-560.87669946,0.00017799,2]
[400647386,1767765032071,-6601.47867132,0.00017799,2]
[400647396,1767765038112,-401.02568508,0.00017798,2]
[400647398,1767765038122,-2561.26378738,0.00017799,2]
[400647400,1767765038133,-4027.82227657,0.00017799,2]
[400647402,1767765038145,-3554.43514114,0.00017799,2]
[400647404,1767765038157,-4843.21385752,0.00017799,2]
[400647406,1767765038168,-10111.1220421,0.00017799,2]
[400647408,1767765038180,-284.94490973,0.00017799,2]
[400647601,1767765040132,-9819.34607684,0.00017799,2]
[400647603,1767765040144,-378778.43475323,0.00017799,2]
[400647605,1767765040153,-158.55,0.00017845,2]
[400647607,1767765040162,-151.0,0.00017897,2]
[400647609,1767765040172,-596.72331593,0.00017899,5]
[400647611,1767765040182,-500.0,0.00017899,2]
[400647613,1767765040191,-500.0,0.00017899,2]
[400647615,1767765040201,-500.0,0.00017899,2]
[400647617,1767765040210,-523.52822816,0.00017899,2]
[400647619,1767765040220,-903.07,0.00017899,2]
[400647621,1767765040229,-10000.0,0.000179,2]
[400647623,1767765040238,-607.5202,0.000179,2]
[400647625,1767765040248,-500.0,0.00017973,2]
[400647627,1767765040257,-552.50710843,0.00017973,2]
[400647629,1767765040266,-500.0,0.00017973,2]
[400647631,1767765040275,-500.0,0.00017973,2]
[400647633,1767765040285,-500.0,0.00017973,2]
[400647635,1767765040294,-500.0,0.00017973,2]
[400647637,1767765040303,-500.0,0.00017973,2]
[400647639,1767765040313,-500.0,0.00017973,2]
[400647641,1767765040322,-500.0,0.00017973,2]
[400647643,1767765040331,-500.0,0.00017999,2]
[400647645,1767765040340,-461.49248906,0.00017999,2]
[400647647,1767765040350,-903.07,0.00018173,2]
[400647649,1767765040359,-699.92362858,0.00018299,2]
[400647651,1767765040368,-903.07,0.00018447,2]
[400647653,1767765040377,-1000.0,0.00018521,2]
[400647655,1767765040388,-500.0,0.00018521,2]
[400647657,1767765040397,-158.55,0.00018559,2]
[400647659,1767765040407,-250.0,0.000187,2]
[400647661,1767765040416,-903.07,0.00018721,2]
[400647663,1767765040424,-903.07,0.00018995,2]
[400647665,1767765040434,-300.0,0.00019,2]
[400647667,1767765040442,-1500.0,0.00019068,2]
[400647669,1767765040451,-200.0,0.00019082,2]
[400647671,1767765040468,-903.07,0.00019269,2]
[400647673,1767765040489,-158.55,0.00019273,2]
[400647675,1767765040500,-420.0,0.00019423,2]
[400647677,1767765040512,-1680.0,0.00019519,2]
[400647679,1767765040522,-903.07,0.00019543,2]
[400647681,1767765040532,-1722.60793064,0.00019616,2]
[400647683,1767765040542,-1731.4,0.00019696,2]
[400647685,1767765040552,-903.14,0.00019817,2]
[400647687,1767765040562,-500.0,0.00019973,2]
[400647689,1767765040572,-504.6314522,0.00019973,2]
[400647691,1767765040585,-500.0,0.00019973,2]
[400647693,1767765040594,-500.0,0.00019973,2]
[400647695,1767765040603,-500.0,0.00019973,2]
[400647697,1767765040612,-500.0,0.00019973,2]
[400647699,1767765040622,-353.03322142,0.00019973,2]
[400647701,1767765040631,-500.0,0.00019973,2]
[400647702,1767765040640,-500.0,0.00019973,2]
[400647705,1767765040651,-500.0,0.00019973,2]
[400647706,1767765040661,-500.0,0.00019973,2]
[400647708,1767765040671,-500.0,0.00019973,2]
[400647710,1767765040689,-500.0,0.00019973,2]
[400647712,1767765040707,-500.0,0.00019973,2]
[400647714,1767765040716,-500.0,0.00019973,2]
[400647716,1767765040725,-500.0,0.00019973,2]
[400647718,1767765040735,-500.0,0.00019973,2]
[400647720,1767765040744,-502.02787874,0.00019973,2]
[400647722,1767765040753,-181.8114728,0.00019973,2]
[400647724,1767765040762,-500.0,0.00019973,2]
[400647726,1767765040772,-500.0,0.00019973,2]
[400647728,1767765040781,-500.0,0.00019973,2]
[400647730,1767765040790,-500.0,0.00019973,2]
[400647732,1767765040800,-500.0,0.00019973,2]
[400647734,1767765040810,-500.0,0.00019973,2]
[400647736,1767765040819,-500.0,0.00019973,2]
[400647738,1767765040828,-500.0,0.00019973,2]
[400647740,1767765040838,-500.0,0.00019973,2]
[400647742,1767765040847,-500.0,0.00019973,2]
[400647744,1767765040857,-500.0,0.00019973,2]
[400647746,1767765040868,-158.55,0.00019987,2]
[400647748,1767765040878,-500.0,0.00020051,2]
[400647750,1767765040887,-157.18,0.000202,7]
[400647752,1767765040897,-158.03,0.00020281,2]
[400647754,1767765040907,-1000.0,0.00020521,2]
[400647756,1767765040917,-426.30074091,0.00020521,2]
[400647758,1767765040926,-1000.0,0.00020521,2]
[400647760,1767765040935,-1000.0,0.00020521,2]
[400647762,1767765040945,-1000.0,0.00020521,2]
[400647764,1767765040955,-1000.0,0.00020521,2]
[400647767,1767765040964,-1000.0,0.00020521,2]
[400647768,1767765040973,-1000.0,0.00020521,2]
[400647770,1767765040983,-1000.0,0.00020521,2]
[400647772,1767765040994,-1000.0,0.00020521,2]
[400647775,1767765041003,-507.33238453,0.00020521,2]
[400647777,1767765041013,-1130.42266667,0.00020521,2]
[400647779,1767765041025,-1000.0,0.00020521,2]
[400647781,1767765041034,-378.91784331,0.00020521,2]
[400647783,1767765041043,-1000.0,0.00020521,2]
[400647785,1767765041053,-1000.0,0.00020521,2]
[400647787,1767765041062,-1009.85151383,0.00020521,2]
[400647789,1767765041072,-1000.0,0.00020521,2]
[400647791,1767765041082,-1000.0,0.00020521,2]
[400647793,1767765041091,-1000.0,0.00020521,2]
[400647795,1767765041100,-1000.0,0.00020521,2]
[400647797,1767765041109,-269.22657261,0.00020521,2]
[400647799,1767765041119,-1000.0,0.00020521,2]
[400647801,1767765041129,-1000.0,0.00020521,2]
[400647803,1767765041138,-1000.0,0.00020521,2]
[400647805,1767765041148,-9479.96716162,0.00020533,2]
[400647807,1767765041157,-4000.66,0.00021068,2]
[400647809,1767765041166,-500.0,0.00021068,2]
[400647811,1767765041175,-1500.0,0.00021068,2]
[400647813,1767765041184,-610.9578609,0.00021068,2]
[400647815,1767765041193,-1500.0,0.00021068,2]
[400647817,1767765041203,-1000.0,0.00021068,2]
[400647819,1767765041212,-500.0,0.00021068,2]
[400647821,1767765041221,-1500.0,0.00021068,2]
[400647823,1767765041230,-1500.0,0.00021068,2]
[400647825,1767765041239,-439.64202386,0.00021068,2]
[400647827,1767765041249,-1500.0,0.00021068,2]
[400647829,1767765041258,-500.0,0.00021068,2]
[400647831,1767765041267,-1500.0,0.00021068,2]
[400647833,1767765041276,-1449.1289913,0.00021068,2]
[400647835,1767765041285,-1500.0,0.00021068,2]
[400647837,1767765041294,-1500.0,0.00021068,2]
[400647839,1767765041303,-1472.18144004,0.00021068,2]
[400647841,1767765041312,-1500.0,0.00021068,2]
[400647843,1767765041322,-1500.0,0.00021068,2]
[400647845,1767765041332,-1500.0,0.00021068,2]
[400647847,1767765041341,-180.0,0.00021198,2]
[400647849,1767765041351,-671.0,0.00021407,2]
[400647851,1767765041360,-269.65052735,0.00021616,2]
[400647853,1767765041370,-759.28401852,0.00021616,2]
[400647855,1767765041379,-297.20835781,0.00021616,2]
[400647857,1767765041388,-466.3681034,0.00021616,2]
[400647859,1767765041397,-258.07274276,0.00021616,2]
[400647861,1767765041407,-1503.18143071,0.00021616,2]
[400647863,1767765041417,-5445.91,0.00021757,2]
[400647865,1767765041426,-150.99,0.00021757,2]
[400647867,1767765041435,-3221.49,0.00021757,2]
[400647869,1767765041443,-1731.4,0.00021861,2]
[400647871,1767765041453,-500.0,0.00021918,2]
[400647873,1767765041462,-150.06442674,0.00021918,2]
[400647875,1767765041471,-500.0,0.00021918,2]
[400647877,1767765041481,-250.0,0.00022463,2]
[400647879,1767765041490,-8943.45,0.00022562,2]
[400647881,1767765041500,-158.03,0.00022816,2]
[400647883,1767765041512,-9479.96716162,0.00023365,2]
[400647885,1767765041521,-1000.0,0.00023462,2]
[400647887,1767765041531,-200.0,0.00023491,2]
[400647889,1767765041540,-1731.4,0.00024026,2]
[400647891,1767765041550,-1000.0,0.00024658,2]
[400647893,1767765041559,-151.0,0.00024897,7]
[400647896,1767765041569,-30905.53025627,0.000249,3]
[400648126,1767765043810,-6064.93768914,0.000249,3]
[400648228,1767765044790,-414.3325745,0.000249,3]
[400648239,1767765044883,-68.02130664,0.000249,3]
[400648241,1767765044895,-485.305,0.000249,3]
[400648244,1767765044907,-752.78724244,0.000249,3]
[400649265,1767765220042,5000.0,0.000162,2]
[400649273,1767765290072,5000.01,0.000162,2]
[400649274,1767765290094,2003.99,0.000162,2]
[400649289,1767765455947,180.43,0.00028988,120]
[400649290,1767765474378,10000.01,0.0001619,2]
[400649291,1767765474401,1532.99,0.0001619,2]
[400649305,1767765571784,300.0,0.00032,120]
[400649325,1767766046093,609.22,0.00032876,120]
[400649335,1767766231973,-709.0,0.00016438,2]
[400649336,1767766231989,-3718.65,0.00016438,2]
[400649337,1767766232000,-300.0,0.00016599,2]
[400649338,1767766232013,-1200.0,0.00016599,2]
[400649339,1767766232027,-250.0,0.000166,2]
[400649340,1767766232040,-8000.0,0.000166,2]
[400649341,1767766232054,-165.39,0.00016712,2]
[400649342,1767766232066,-250.0,0.00017,2]
[400649343,1767766232078,-208.78,0.00017219,2]
[400649344,1767766232089,-8531.97044553,0.00017429,2]
[400649345,1767766232100,-5837.48785254,0.00017429,2]
[400649346,1767766232111,-151.0,0.0001748,2]
[400649347,1767766232126,-151.0,0.0001748,2]
[400649348,1767766232138,-193694.71112102,0.00017499,2]
[400649349,1767766232159,-6669.40151719,0.00017499,2]
[400649350,1767766232172,-1055.75751354,0.00017499,2]
[400649351,1767766232187,-193605.68198299,0.00017499,2]
[400649352,1767766232209,-1292.16758697,0.00017499,2]
[400649353,1767766232222,-44176.27875269,0.00017499,2]
[400649354,1767766232236,-1010.2,0.00017499,2]
[400649362,1767766238102,-172.27921102,0.00017429,2]
[400649363,1767766238118,-1191.98377618,0.00017499,2]
[400649364,1767766238136,-5054.72283274,0.00017499,2]
[400649365,1767766238159,-12544.9441137,0.00017499,2]
[400649366,1767766238217,-722.14799494,0.00017499,2]
[400649367,1767766238234,-12233.33934785,0.00017499,2]
[400649368,1767766238251,-19887.15367583,0.00017499,2]
[400649369,1767766238267,-1199.44426882,0.00017499,2]
[400649370,1767766238286,-36052.00000001,0.00017499,2]
[400649929,1767766243944,-323.82747717,0.00017499,2]
[400649948,1767766244108,-380.05252024,0.00017499,2]
[400650056,1767766245168,-924.0,0.00017499,2]
[400650132,1767766246054,-1959.85386834,0.00017499,2]
[400650150,1767766246223,-1876.8110829,0.00017499,2]
[400650168,1767766246392,-7769.17169606,0.00017499,2]
[400650644,1767766366935,296.95,0.00032877,120]
[400650689,1767766898223,558.91639577,0.00032877,120]
[400650732,1767767177376,500.0,0.00032877,120]
[400650733,1767767210081,1226.79,0.000162,5]
[400650750,1767767432160,-291.0,0.00016742,2]
[400650751,1767767432170,-0.65158265,0.00016742,2]
[400650756,1767767432276,-199.34841735,0.00016742,2]
[400650757,1767767432287,-1000.0,0.00017199,2]
[400650758,1767767432297,-300.0,0.00017297,2]
[400650759,1767767432307,-1200.0,0.00017297,2]
[400650760,1767767432318,-5253.73906734,0.00017298,2]
[400650761,1767767432330,-4966.17902983,0.00017298,2]
[400650762,1767767432346,-2712.59437112,0.00017298,2]
[400650763,1767767432360,-166.62691686,0.00017298,2]
[400650764,1767767432370,-7678.7734009,0.00017365,2]
[400650765,1767767432382,-5253.73906728,0.00017367,2]
[400650766,1767767432393,-151.0,0.00017395,2]
[400650768,1767767432403,-151.0,0.00017395,2]
[400650770,1767767432412,-166.20637583,0.00017397,2]
[400650772,1767767432423,-328.94764463,0.00017397,2]
[400650796,1767767438265,-160.54585131,0.00017397,2]
[400650797,1767767438275,-500.0,0.00017397,2]
[400650798,1767767438286,-184.72888944,0.00017397,2]
[400650799,1767767438296,-243.13627184,0.00017397,2]
[400650800,1767767438306,-439.77988355,0.00017397,2]
[400650801,1767767438315,-500.0,0.00017397,2]
[400650802,1767767438327,-500.0,0.00017397,2]
[400650803,1767767438336,-500.0,0.00017397,2]
[400650804,1767767438346,-480.79985995,0.00017397,2]
[400650805,1767767438358,-75.05968578,0.00017397,2]
[400650806,1767767438368,-500.0,0.00017397,2]
[400650807,1767767438377,-500.0,0.00017397,2]
[400650808,1767767438387,-500.0,0.00017397,2]
[400650809,1767767438396,-500.0,0.00017397,2]
[400650810,1767767438406,-500.0,0.00017397,2]
[400650811,1767767438416,-500.0,0.00017397,2]
[400650812,1767767438426,-500.0,0.00017397,2]
[400650813,1767767438436,-500.0,0.00017397,2]
[400650814,1767767438446,-239.82717349,0.00017397,2]
[400650815,1767767438469,-260.17282651,0.00017397,2]
[400650816,1767767438479,-475.48685797,0.00017397,2]
[400650817,1767767438489,-500.0,0.00017397,2]
[400650818,1767767438499,-500.0,0.00017397,2]
[400650819,1767767438508,-500.0,0.00017397,2]
[400650820,1767767438518,-500.0,0.00017397,2]
[400650821,1767767438527,-500.0,0.00017397,2]
[400650822,1767767438536,-500.0,0.00017397,2]
[400650823,1767767438545,-500.0,0.00017397,2]
[400650824,1767767438555,-500.0,0.00017397,2]
[400650826,1767767438564,-500.0,0.00017397,2]
[400650827,1767767438574,-500.0,0.00017397,2]
[400650828,1767767438583,-500.0,0.00017397,2]
[400650857,1767767438947,-500.0,0.00017397,2]
[400650859,1767767438957,-500.0,0.00017397,2]
[400650861,1767767438967,-500.0,0.00017397,2]
[400650863,1767767438976,-500.0,0.00017397,2]
[400650865,1767767438986,-500.0,0.00017397,2]
[400650867,1767767438995,-500.0,0.00017397,2]
[400650868,1767767439004,-500.0,0.00017397,2]
[400650871,1767767439014,-500.0,0.00017397,2]
[400650873,1767767439023,-500.0,0.00017397,2]
[400650875,1767767439032,-500.0,0.00017397,2]
[400650876,1767767439042,-500.0,0.00017397,2]
[400650878,1767767439052,-500.0,0.00017397,2]
[400650881,1767767439061,-500.0,0.00017397,2]
[400650883,1767767439071,-500.0,0.00017397,2]
[400650885,1767767439081,-570.94069497,0.00017397,2]
[400650887,1767767439091,-500.0,0.00017397,2]
[400650888,1767767439099,-499.99999999,0.00017397,2]
[400650890,1767767439109,-221.0,0.00017397,2]
[400650892,1767767439117,-900939.15109333,0.00017398,2]
[400650895,1767767439128,-99060.84890667,0.00017398,2]
[400650897,1767767439138,-500.0,0.00017398,2]
[400650899,1767767439147,-1000.0,0.00017399,2]
[400650901,1767767439156,-2500.0,0.00017399,2]